fUSD/lending_fUSD_20250506
["ID","MTS","AMOUNT","RATE_DAILY","PERIOD"]
[360075922,1746538244205,-234.54229236,0.0001999,2]
[360075924,1746538244215,-234.54229236,0.0001999,2]
[360075926,1746538244224,-450.0,0.00019997,2]
[360075928,1746538244234,-151.0,0.00019998,2]
[360075930,1746538244243,-415.47896754,0.00019998,2]
[360075932,1746538244252,-595.51,0.00019998,2]
[360075934,1746538244262,-450.0,0.00019998,2]
[360075936,1746538244274,-450.0,0.00019998,2]
[360075938,1746538244283,-450.0,0.00019998,2]
[360075940,1746538244293,-450.0,0.00019998,2]
[360075942,1746538244303,-450.0,0.00019998,2]
[360075944,1746538244312,-500.0,0.00019998,2]
[360075946,1746538244321,-450.0,0.00019998,2]
[360075948,1746538244331,-1303.55,0.00019998,2]
[360075950,1746538244341,-450.0,0.00019998,2]
[360075952,1746538244350,-450.0,0.00019998,2]
[360075954,1746538244360,-15386.42,0.00019998,2]
[360075956,1746538244369,-15386.42,0.00019998,2]
[360075958,1746538244379,-450.0,0.00019998,2]
[360075960,1746538244389,-450.0,0.00019998,2]
[360075962,1746538244399,-317.36,0.00019998,2]
[360075964,1746538244408,-450.0,0.00019998,2]
[360075966,1746538244418,-450.0,0.00019998,2]
[360075968,1746538244428,-450.0,0.00019998,2]
[360075970,1746538244438,-450.0,0.00019998,2]
[360075972,1746538244448,-450.0,0.00019998,2]
[360075974,1746538244457,-450.0,0.00019998,2]
[360075976,1746538244467,-450.0,0.00019998,2]
[360075978,1746538244476,-450.0,0.00019998,2]
[360075980,1746538244486,-216.04,0.00019998,2]
[360075982,1746538244495,-450.0,0.00019998,2]
[360075984,1746538244504,-459.68,0.00019998,2]
[360075986,1746538244517,-450.0,0.00019998,2]
[360075988,1746538244527,-450.0,0.00019998,2]
[360075990,1746538244537,-506.3,0.00019998,2]
[360075992,1746538244546,-450.0,0.00019998,2]
[360075994,1746538244556,-572.32101459,0.00019998,2]
[360075996,1746538244567,-492.3,0.00019998,2]
[360075998,1746538244577,-450.0,0.00019998,2]
[360076000,1746538244587,-450.0,0.00019998,2]
[360076002,1746538244597,-450.0,0.00019998,2]
[360076004,1746538244607,-450.0,0.00019998,2]
[360076006,1746538244616,-450.0,0.00019998,2]
[360076008,1746538244625,-462.52,0.00019998,2]
[360076010,1746538244635,-578.16,0.00019998,2]
[360076012,1746538244644,-578.16,0.00019998,2]
[360076014,1746538244654,-657.61,0.00019998,2]
[360076016,1746538244663,-657.61,0.00019998,2]
[360076018,1746538244673,-657.61,0.00019998,2]
[360076020,1746538244683,-551.07,0.00019998,2]
[360076022,1746538244693,-551.07,0.00019998,2]
[360076024,1746538244703,-450.0,0.00019998,2]
[360076027,1746538244712,-450.0,0.00019998,2]
[360076029,1746538244722,-810.59,0.00019998,2]
[360076031,1746538244731,-810.59,0.00019998,2]
[360076033,1746538244740,-450.0,0.00019998,2]
[360076035,1746538244750,-450.0,0.00019998,2]
[360076037,1746538244760,-7324.02,0.00019998,2]
[360076039,1746538244772,-7324.02,0.00019998,2]
[360076041,1746538244782,-450.0,0.00019998,2]
[360076043,1746538244792,-552.19,0.00019998,2]
[360076045,1746538244802,-552.19,0.00019998,2]
[360076047,1746538244811,-552.19,0.00019998,2]
[360076049,1746538244821,-450.0,0.00019998,2]
[360076051,1746538244831,-467.9,0.00019998,2]
[360076053,1746538244840,-467.9,0.00019998,2]
[360076055,1746538244850,-450.0,0.00019998,2]
[360076057,1746538244860,-288.12836136,0.00019998,2]
[360076059,1746538244870,-500.0,0.00019999,2]
[360076061,1746538244880,-500.0,0.00019999,2]
[360076062,1746538244889,-500.0,0.00019999,2]
[360076063,1746538244899,-151.0,0.00019999,2]
[360076064,1746538244910,-151.0,0.00019999,2]
[360076065,1746538244920,-151.0,0.00019999,2]
[360076066,1746538244930,-151.0,0.00019999,2]
[360076067,1746538244940,-169.66458,0.00019999,2]
[360076068,1746538244949,-151.0,0.00019999,2]
[360076069,1746538244959,-450.0,0.00019999,2]
[360076070,1746538244969,-450.0,0.00019999,2]
[360076071,1746538244978,-450.0,0.00019999,2]
[360076072,1746538244989,-450.0,0.00019999,2]
[360076073,1746538245001,-450.0,0.00019999,2]
[360076075,1746538245011,-450.0,0.00019999,2]
[360076077,1746538245024,-450.0,0.00019999,2]
[360076079,1746538245035,-450.0,0.00019999,2]
[360076081,1746538245046,-268.92,0.00019999,2]
[360076083,1746538245056,-154.554191,0.00019999,2]
[360076085,1746538245066,-213.037343,0.00019999,2]
[360076087,1746538245077,-151.0,0.00019999,2]
[360076089,1746538245086,-151.0,0.00019999,2]
[360076091,1746538245096,-151.0,0.00019999,2]
[360076093,1746538245105,-151.0,0.00019999,2]
[360076095,1746538245115,-189.159591,0.00019999,2]
[360076097,1746538245124,-189.159591,0.00019999,2]
[360076099,1746538245134,-193.83814,0.00019999,2]
[360076101,1746538245144,-151.0,0.00019999,2]
[360076116,1746538245279,-193.83814,0.00019999,2]
[360076118,1746538245289,-159.796325,0.00019999,2]
[360076120,1746538245298,-151.0,0.00019999,2]
[360076122,1746538245307,-159.796325,0.00019999,2]
[360076124,1746538245317,-151.0,0.00019999,2]
[360076126,1746538245326,-153.988947,0.00019999,2]
[360076128,1746538245335,-213.57,0.00019999,2]
[360076130,1746538245344,-151.0,0.00019999,2]
[360076132,1746538245354,-151.0,0.00019999,2]
[360076134,1746538245363,-151.0,0.00019999,2]
[360076136,1746538245373,-500.0,0.00019999,2]
[360076138,1746538245383,-500.0,0.00019999,2]
[360076140,1746538245392,-500.0,0.00019999,2]
[360076142,1746538245402,-500.0,0.00019999,2]
[360076144,1746538245412,-500.0,0.00019999,2]
[360076146,1746538245421,-151.0,0.00019999,2]
[360076148,1746538245430,-500.0,0.00019999,2]
[360076150,1746538245440,-500.0,0.00019999,2]
[360076152,1746538245449,-500.0,0.00019999,2]
[360076154,1746538245458,-500.0,0.00019999,2]
[360076156,1746538245467,-500.0,0.00019999,2]
[360076158,1746538245476,-500.0,0.00019999,2]
[360076160,1746538245486,-500.0,0.00019999,2]
[360076162,1746538245495,-500.0,0.00019999,2]
[360076164,1746538245504,-500.0,0.00019999,2]
[360076166,1746538245515,-500.0,0.00019999,2]
[360076168,1746538245524,-588.36303363,0.00019999,2]
[360076170,1746538245534,-450.0,0.00019999,2]
[360076172,1746538245543,-151.78,0.00019999,2]
[360076174,1746538245552,-1303.55,0.00019999,2]
[360076176,1746538245561,-1303.55,0.00019999,2]
[360076178,1746538245571,-1303.55,0.00019999,2]
[360076180,1746538245580,-1303.55,0.00019999,2]
[360076182,1746538245590,-1303.55,0.00019999,2]
[360076184,1746538245599,-1303.55,0.00019999,2]
[360076186,1746538245608,-1303.55,0.00019999,2]
[360076188,1746538245618,-1303.55,0.00019999,2]
[360076189,1746538245627,-1303.55,0.00019999,2]
[360076191,1746538245636,-1303.55,0.00019999,2]
[360076194,1746538245645,-1303.55,0.00019999,2]
[360076196,1746538245655,-1303.55,0.00019999,2]
[360076197,1746538245664,-1303.55,0.00019999,2]
[360076199,1746538245673,-1303.55,0.00019999,2]
[360076201,1746538245682,-1303.55,0.00019999,2]
[360076203,1746538245691,-1303.55,0.00019999,2]
[360076205,1746538245700,-1303.55,0.00019999,2]
[360076207,1746538245710,-1303.55,0.00019999,2]
[360076209,1746538245720,-1303.55,0.00019999,2]
[360076211,1746538245729,-1303.55,0.00019999,2]
[360076213,1746538245739,-1303.56519756,0.00019999,2]
[360076215,1746538245748,-151.0,0.00019999,2]
[360076217,1746538245757,-450.0,0.00019999,2]
[360076219,1746538245767,-450.0,0.00019999,2]
[360076221,1746538245776,-561.72,0.00019999,2]
[360076223,1746538245785,-151.0,0.00019999,2]
[360076225,1746538245794,-151.0,0.00019999,2]
[360076227,1746538245803,-15386.42,0.00019999,2]
[360076229,1746538245812,-15386.42,0.00019999,2]
[360076231,1746538245821,-15386.42,0.00019999,2]
[360076233,1746538245830,-15386.42,0.00019999,2]
[360076235,1746538245839,-15386.42,0.00019999,2]
[360076237,1746538245848,-15386.42,0.00019999,2]
[360076239,1746538245857,-15386.42,0.00019999,2]
[360076241,1746538245866,-15386.42,0.00019999,2]
[360076243,1746538245876,-277.710395,0.00019999,2]
[360076245,1746538245885,-15386.42,0.00019999,2]
[360076247,1746538245894,-15386.42,0.00019999,2]
[360076249,1746538245903,-15386.42,0.00019999,2]
[360076251,1746538245912,-15386.42,0.00019999,2]
[360076253,1746538245921,-15386.42,0.00019999,2]
[360076255,1746538245931,-15386.42,0.00019999,2]
[360076257,1746538245940,-15386.42,0.00019999,2]
[360076259,1746538245949,-15386.42,0.00019999,2]
[360076261,1746538245958,-15386.42,0.00019999,2]
[360076263,1746538245967,-15386.44335485,0.00019999,2]
[360076265,1746538245977,-277.710395,0.00019999,2]
[360076267,1746538245987,-197.768425,0.00019999,2]
[360076269,1746538246003,-571.98,0.00019999,2]
[360076271,1746538246012,-197.768425,0.00019999,2]
[360076273,1746538246021,-151.0,0.00019999,2]
[360076275,1746538246030,-213.130863,0.00019999,2]
[360076277,1746538246041,-151.0,0.00019999,2]
[360076279,1746538246050,-151.0,0.00019999,2]
[360076280,1746538246059,-213.130863,0.00019999,2]
[360076282,1746538246068,-243.786934,0.00019999,2]
[360076285,1746538246078,-151.0,0.00019999,2]
[360076288,1746538246088,-420.96056603,0.00019999,2]
[360076290,1746538246096,-151.0,0.00019999,2]
[360076292,1746538246106,-381.86,0.00019999,2]
[360076294,1746538246115,-151.0,0.00019999,2]
[360076296,1746538246124,-176.98,0.00019999,2]
[360076298,1746538246134,-450.0,0.00019999,2]
[360076300,1746538246143,-450.0,0.00019999,2]
[360076302,1746538246152,-450.0,0.00019999,2]
[360076304,1746538246161,-450.0,0.00019999,2]
[360076306,1746538246169,-450.0,0.00019999,2]
[360076308,1746538246178,-450.0,0.00019999,2]
[360076310,1746538246187,-450.0,0.00019999,2]
[360076312,1746538246197,-450.0,0.00019999,2]
[360076314,1746538246206,-450.0,0.00019999,2]
[360076316,1746538246215,-450.0,0.00019999,2]
[360076318,1746538246223,-450.0,0.00019999,2]
[360076320,1746538246233,-450.0,0.00019999,2]
[360076322,1746538246242,-450.0,0.00019999,2]
[360076324,1746538246251,-450.0,0.00019999,2]
[360076326,1746538246261,-450.0,0.00019999,2]
[360076327,1746538246270,-450.0,0.00019999,2]
[360076329,1746538246280,-437.81,0.00019999,2]
[360076332,1746538246290,-503.00257842,0.00019999,2]
[360076334,1746538246299,-450.0,0.00019999,2]
[360076336,1746538246308,-221.14,0.00019999,2]
[360076337,1746538246317,-450.0,0.00019999,2]
[360076339,1746538246326,-359.74,0.00019999,2]
[360076341,1746538246335,-450.0,0.00019999,2]
[360076343,1746538246344,-450.0,0.00019999,2]
[360076345,1746538246354,-450.0,0.00019999,2]
[360076347,1746538246363,-450.0,0.00019999,2]
[360076349,1746538246372,-450.0,0.00019999,2]
[360076351,1746538246381,-450.0,0.00019999,2]
[360076353,1746538246391,-450.0,0.00019999,2]
[360076355,1746538246400,-450.0,0.00019999,2]
[360076357,1746538246409,-450.0,0.00019999,2]
[360076359,1746538246418,-446.162096,0.00019999,2]
[360076361,1746538246428,-450.0,0.00019999,2]
[360076363,1746538246437,-450.0,0.00019999,2]
[360076365,1746538246447,-446.162096,0.00019999,2]
[360076367,1746538246455,-450.0,0.00019999,2]
[360076369,1746538246465,-450.0,0.00019999,2]
[360076371,1746538246474,-450.0,0.00019999,2]
[360076373,1746538246482,-450.0,0.00019999,2]
[360076375,1746538246491,-442.43377743,0.00019999,2]
[360076377,1746538246500,-446.162096,0.00019999,2]
[360076379,1746538246509,-446.162096,0.00019999,2]
[360076381,1746538246518,-578.16,0.00019999,2]
[360076383,1746538246527,-578.16,0.00019999,2]
[360076385,1746538246536,-578.16,0.00019999,2]
[360076387,1746538246545,-578.16,0.00019999,2]
[360076389,1746538246554,-578.16,0.00019999,2]
[360076391,1746538246563,-578.16,0.00019999,2]
[360076393,1746538246572,-578.16,0.00019999,2]
[360076395,1746538246581,-578.16,0.00019999,2]
[360076397,1746538246591,-578.16,0.00019999,2]
[360076399,1746538246600,-578.16,0.00019999,2]
[360076401,1746538246609,-578.16,0.00019999,2]
[360076403,1746538246618,-578.16,0.00019999,2]
[360076405,1746538246627,-578.16,0.00019999,2]
[360076407,1746538246636,-578.16,0.00019999,2]
[360076409,1746538246645,-578.16,0.00019999,2]
[360076411,1746538246654,-158.202137,0.00019999,2]
[360076413,1746538246664,-578.16,0.00019999,2]
[360076415,1746538246673,-578.16,0.00019999,2]
[360076417,1746538246683,-578.3,0.00019999,2]
[360076419,1746538246693,-657.61,0.00019999,2]
[360076421,1746538246702,-657.61,0.00019999,2]
[360076423,1746538246711,-657.61,0.00019999,2]
[360076425,1746538246720,-657.61,0.00019999,2]
[360076427,1746538246729,-657.61,0.00019999,2]
[360076429,1746538246738,-657.61,0.00019999,2]
[360076430,1746538246747,-657.61,0.00019999,2]
[360076432,1746538246756,-657.61,0.00019999,2]
[360076435,1746538246765,-657.61,0.00019999,2]
[360076436,1746538246774,-657.61,0.00019999,2]
[360076438,1746538246783,-657.61,0.00019999,2]
[360076440,1746538246792,-657.61,0.00019999,2]
[360076442,1746538246801,-657.61,0.00019999,2]
[360076444,1746538246809,-657.61,0.00019999,2]
[360076446,1746538246818,-551.07,0.00019999,2]
[360076448,1746538246827,-657.61,0.00019999,2]
[360076450,1746538246836,-657.61,0.00019999,2]
[360076452,1746538246845,-551.07,0.00019999,2]
[360076454,1746538246854,-551.07,0.00019999,2]
[360076456,1746538246863,-551.07,0.00019999,2]
[360076458,1746538246872,-657.68475267,0.00019999,2]
[360076460,1746538246881,-551.07,0.00019999,2]
[360076462,1746538246891,-551.07,0.00019999,2]
[360076464,1746538246900,-551.07,0.00019999,2]
[360076466,1746538246909,-551.07,0.00019999,2]
[360076468,1746538246918,-551.07,0.00019999,2]
[360076470,1746538246928,-551.07,0.00019999,2]
[360076472,1746538246937,-551.07,0.00019999,2]
[360076474,1746538246947,-551.07,0.00019999,2]
[360076476,1746538246956,-551.07,0.00019999,2]
[360076478,1746538246965,-551.07,0.00019999,2]
[360076481,1746538246975,-551.07,0.00019999,2]
[360076483,1746538246983,-551.07,0.00019999,2]
[360076484,1746538246993,-551.07,0.00019999,2]
[360076486,1746538247005,-551.13439464,0.00019999,2]
[360076488,1746538247015,-450.0,0.00019999,2]
[360076490,1746538247024,-450.0,0.00019999,2]
[360076492,1746538247033,-450.0,0.00019999,2]
[360076494,1746538247044,-450.0,0.00019999,2]
[360076496,1746538247053,-450.0,0.00019999,2]
[360076498,1746538247062,-450.0,0.00019999,2]
[360076500,1746538247071,-450.0,0.00019999,2]
[360076502,1746538247080,-450.0,0.00019999,2]
[360076504,1746538247089,-597.63,0.00019999,2]
[360076506,1746538247098,-810.59,0.00019999,2]
[360076508,1746538247107,-810.59,0.00019999,2]
[360076510,1746538247116,-810.59,0.00019999,2]
[360076512,1746538247125,-810.59,0.00019999,2]
[360076514,1746538247134,-810.59,0.00019999,2]
[360076516,1746538247143,-810.59,0.00019999,2]
[360076518,1746538247152,-810.59,0.00019999,2]
[360076520,1746538247161,-810.59,0.00019999,2]
[360076522,1746538247171,-810.59,0.00019999,2]
[360076524,1746538247179,-810.59,0.00019999,2]
[360076526,1746538247188,-810.59,0.00019999,2]
[360076528,1746538247198,-810.59,0.00019999,2]
[360076530,1746538247207,-810.59,0.00019999,2]
[360076532,1746538247216,-810.59,0.00019999,2]
[360076534,1746538247225,-810.59,0.00019999,2]
[360076536,1746538247234,-810.59,0.00019999,2]
[360076538,1746538247244,-810.59,0.00019999,2]
[360076540,1746538247253,-810.81000001,0.00019999,2]
[360076542,1746538247262,-450.0,0.00019999,2]
[360076544,1746538247272,-450.0,0.00019999,2]
[360076546,1746538247281,-450.0,0.00019999,2]
[360076548,1746538247291,-450.0,0.00019999,2]
[360076550,1746538247300,-450.0,0.00019999,2]
[360076552,1746538247309,-450.0,0.00019999,2]
[360076554,1746538247319,-450.0,0.00019999,2]
[360076556,1746538247328,-450.0,0.00019999,2]
[360076558,1746538247338,-492.17,0.00019999,2]
[360076560,1746538247347,-151.0,0.00019999,2]
[360076562,1746538247356,-151.0,0.00019999,2]
[360076564,1746538247366,-7324.02,0.00019999,2]
[360076566,1746538247375,-7324.02,0.00019999,2]
[360076568,1746538247385,-7324.02,0.00019999,2]
[360076570,1746538247394,-7324.02,0.00019999,2]
[360076571,1746538247404,-7324.02,0.00019999,2]
[360076573,1746538247417,-7324.02,0.00019999,2]
[360076575,1746538247426,-7324.02,0.00019999,2]
[360076578,1746538247438,-7324.02,0.00019999,2]
[360076580,1746538247447,-7324.02,0.00019999,2]
[360076582,1746538247456,-7324.02,0.00019999,2]
[360076584,1746538247466,-7324.02,0.00019999,2]
[360076586,1746538247475,-7324.02,0.00019999,2]
[360076588,1746538247484,-7324.02,0.00019999,2]
[360076590,1746538247493,-7324.02,0.00019999,2]
[360076592,1746538247503,-7324.02,0.00019999,2]
[360076594,1746538247512,-7324.02,0.00019999,2]
[360076596,1746538247522,-7324.02,0.00019999,2]
[360076598,1746538247531,-7324.1072,0.00019999,2]
[360076599,1746538247540,-552.19,0.00019999,2]
[360076600,1746538247550,-552.19,0.00019999,2]
[360076601,1746538247559,-552.19,0.00019999,2]
[360076602,1746538247569,-552.19,0.00019999,2]
[360076603,1746538247578,-552.19,0.00019999,2]
[360076604,1746538247587,-552.19,0.00019999,2]
[360076605,1746538247596,-552.19,0.00019999,2]
[360076606,1746538247606,-552.19,0.00019999,2]
[360076607,1746538247615,-552.19,0.00019999,2]
[360076608,1746538247625,-552.19,0.00019999,2]
[360076609,1746538247634,-552.19,0.00019999,2]
[360076610,1746538247643,-552.19,0.00019999,2]
[360076611,1746538247653,-552.19,0.00019999,2]
[360076613,1746538247662,-552.19,0.00019999,2]
[360076615,1746538247672,-552.19,0.00019999,2]
[360076617,1746538247681,-552.19,0.00019999,2]
[360076619,1746538247690,-552.24,0.00019999,2]
[360076621,1746538247700,-467.9,0.00019999,2]
[360076623,1746538247709,-467.9,0.00019999,2]
[360076625,1746538247719,-467.9,0.00019999,2]
[360076627,1746538247728,-249.573929,0.00019999,2]
[360076629,1746538247738,-467.9,0.00019999,2]
[360076631,1746538247747,-249.573929,0.00019999,2]
[360076633,1746538247756,-467.9,0.00019999,2]
[360076635,1746538247765,-467.9,0.00019999,2]
[360076637,1746538247774,-467.9,0.00019999,2]
[360076639,1746538247783,-467.9,0.00019999,2]
[360076641,1746538247792,-467.9,0.00019999,2]
[360076643,1746538247801,-467.9,0.00019999,2]
[360076645,1746538247810,-467.9,0.00019999,2]
[360076647,1746538247819,-467.9,0.00019999,2]
[360076649,1746538247827,-467.9,0.00019999,2]
[360076650,1746538247837,-467.9,0.00019999,2]
[360076653,1746538247846,-467.9,0.00019999,2]
[360076655,1746538247857,-467.9,0.00019999,2]
[360076657,1746538247866,-467.9,0.00019999,2]
[360076659,1746538247875,-467.96,0.00019999,2]
[360076660,1746538247884,-249.573929,0.00019999,2]
[360076662,1746538247893,-249.573929,0.00019999,2]
[360076664,1746538247902,-615271.23572986,0.0002,2]
[360076671,1746538247953,-450.0,0.00019592,2]
[360076673,1746538247962,-258.0,0.0002,2]
[360076698,1746538248196,-450.0,0.0001966,2]
[360076700,1746538248206,-450.0,0.00019807,2]
[360076702,1746538248215,-2547.51354814,0.000199,2]
[360076705,1746538248226,-1769.62,0.000199,2]
[360076707,1746538248238,-3771.02376755,0.000199,2]
[360076709,1746538248249,-295.99920458,0.000199,2]
[360076711,1746538248260,-6163.41419395,0.000199,2]
[360076713,1746538248272,-356.29700548,0.000199,2]
[360076762,1746538248727,-296.52288455,0.00019628,2]
[360076764,1746538248737,-7258.68676383,0.00019776,2]
[360076766,1746538248748,-3212.66273304,0.00019776,2]
[360076769,1746538248764,-151.0,0.00019774,2]
[360076771,1746538248774,-440.0999995,0.00019776,2]
[360076962,1746538251138,2874.1,0.0003,30]
[360076972,1746538266540,500.0,0.00019493,2]
[360076973,1746538440332,484.44,0.00016891,2]
[360076974,1746538440567,484.44,0.00019155,2]
[360076976,1746538795221,165.25,0.00019358,2]
[360076977,1746538887393,1333.0,0.00029041,120]
[360076978,1746538988070,250.0,0.00017,2]
[360076979,1746538989158,300.0,0.00019,2]
[360076981,1746539149644,1000.0,0.00018711,2]
[360076982,1746539315563,555.14,0.00018695,2]
[360076983,1746539332399,-160.4283214,0.00019511,2]
[360076984,1746539347020,-296.30003093,0.00019511,2]
[360076985,1746539360933,-193.76925912,0.00019511,2]
[360076986,1746539376548,-290.93080443,0.00019511,2]
[360076987,1746539390944,-200.47515817,0.00019511,2]
[360076988,1746539405972,-168.31,0.00019511,2]
[360076989,1746539416986,450.0,0.0003,30]
[360076990,1746539421489,-315.14258553,0.00019511,2]
[360076999,1746539431379,-150.0,0.00019918,7]
[360077000,1746539431457,-1298.07935808,0.00019511,2]
[360077001,1746539431467,-200.0,0.00019519,2]
[360077002,1746539431476,-431.0,0.00019526,2]
[360077003,1746539431486,-110.92068192,0.00019527,2]
[360077004,1746539431568,-449.93201453,0.00019527,2]
[360077005,1746539431579,-470.18349059,0.00019527,2]
[360077006,1746539431626,-168.96381296,0.00019527,2]
[360077007,1746539431635,-112.54500642,0.00019527,2]
[360077008,1746539431646,-187.45499358,0.00019527,2]
[360077009,1746539431655,-62.54500642,0.00019527,2]
[360077010,1746539431738,-237.45499358,0.00019527,2]
[360077012,1746539431747,-200.0,0.00019528,2]
[360077014,1746539431756,-151.0,0.00019528,2]
[360077016,1746539431766,-194.98896921,0.00019528,2]
[360077018,1746539431775,-88893.38824071,0.00019528,2]
[360077020,1746539431785,-225.0,0.00019529,2]
[360077022,1746539431794,-2923.43551758,0.00019554,2]
[360077024,1746539431803,-207.4,0.00019589,2]
[360077025,1746539431812,-1000.0,0.00019591,2]
[360077028,1746539431823,-2923.43551758,0.00019597,2]
[360077029,1746539431832,-1383.15,0.000196,2]
[360077031,1746539431843,-150.0,0.000196,2]
[360077033,1746539431852,-200.0,0.000196,2]
[360077035,1746539431862,-13547.13840197,0.00019601,2]
[360077037,1746539431871,-19942.63,0.00019601,2]
[360077038,1746539431881,-7458.89,0.00019601,2]
[360077039,1746539431891,-150.99,0.00019601,2]
[360077040,1746539431900,-9999.99,0.00019601,2]
[360077042,1746539431910,-1000.0,0.0001961,2]
[360077044,1746539431919,-463.83536893,0.00019611,2]
[360077046,1746539431930,-470.0,0.00019611,2]
[360077048,1746539431939,-470.0,0.00019611,2]
[360077051,1746539431948,-470.0,0.00019611,2]
[360077053,1746539431957,-330.0,0.00019611,2]
[360077056,1746539431967,-470.0,0.00019611,2]
[360077059,1746539431976,-573.44291963,0.00019611,2]
[360077062,1746539431985,-523.49238291,0.00019611,2]
[360077065,1746539431994,-470.0,0.00019611,2]
[360077068,1746539432003,-470.0,0.00019611,2]
[360077071,1746539432012,-470.0,0.00019611,2]
[360077074,1746539432024,-470.0,0.00019611,2]
[360077077,1746539432033,-450.0,0.00019611,2]
[360077079,1746539432042,-470.0,0.00019611,2]
[360077082,1746539432051,-470.0,0.00019611,2]
[360077085,1746539432062,-470.0,0.00019611,2]
[360077088,1746539432072,-470.0,0.00019611,2]
[360077090,1746539432081,-470.0,0.00019611,2]
[360077092,1746539432091,-493.32,0.00019611,2]
[360077094,1746539432100,-205.47,0.00019611,2]
[360077095,1746539432109,-470.0,0.00019611,2]
[360077096,1746539432118,-450.0,0.00019611,2]
[360077097,1746539432127,-490.0,0.00019611,2]
[360077098,1746539432136,-450.0,0.00019611,2]
[360077099,1746539432145,-589.78572216,0.00019611,2]
[360077100,1746539432154,-77.86766465,0.00019611,2]
[360077101,1746539436203,150.49171259,0.00018816,2]
[360077102,1746539436226,56.90828741,0.00018816,2]
[360077111,1746539437423,-412.13233535,0.00019611,2]
[360077112,1746539437433,-450.0,0.00019611,2]
[360077113,1746539437442,-490.0,0.00019611,2]
[360077114,1746539437452,-450.0,0.00019611,2]
[360077115,1746539437461,-470.0,0.00019611,2]
[360077116,1746539437472,-490.0,0.00019611,2]
[360077117,1746539437481,-450.0,0.00019611,2]
[360077118,1746539437491,-490.0,0.00019611,2]
[360077119,1746539437501,-490.0,0.00019611,2]
[360077120,1746539437511,-490.0,0.00019611,2]
[360077121,1746539437521,-490.0,0.00019611,2]
[360077122,1746539437530,-490.0,0.00019611,2]
[360077123,1746539437540,-490.0,0.00019611,2]
[360077124,1746539437550,-490.0,0.00019611,2]
[360077125,1746539437559,-474.02420047,0.00019611,2]
[360077126,1746539437569,-427.08,0.00019611,2]
[360077127,1746539437578,-573.24,0.00019611,2]
[360077128,1746539437588,-450.0,0.00019611,2]
[360077129,1746539437600,-450.0,0.00019611,2]
[360077130,1746539437611,-450.0,0.00019611,2]
[360077131,1746539437620,-450.0,0.00019611,2]
[360077132,1746539437630,-499.473988,0.00019611,2]
[360077133,1746539437640,-450.0,0.00019611,2]
[360077134,1746539437649,-450.0,0.00019611,2]
[360077135,1746539437659,-527.86,0.00019611,2]
[360077136,1746539437668,-450.0,0.00019611,2]
[360077137,1746539437679,-450.0,0.00019611,2]
[360077138,1746539437689,-450.0,0.00019611,2]
[360077139,1746539437699,-450.0,0.00019611,2]
[360077140,1746539437708,-151.0,0.00019613,2]